[Event "*** Titled Tuesday Blitz"]
[Site "Chess.com"]
[Date "2020.05.19"]
[Round "5"]
[White "florianschwabeneder"]
[Black "InitiatingASC"]
[Result "1/2-1/2"]
[WhiteElo "2505"]
[BlackElo "2358"]
[TimeControl "180+1"]
[EndTime "12:58:48 PDT"]
[Termination "Game drawn by repetition"]

1. Nf3 {[%clk 0:03:00.9]} 1... Nf6 {[%clk 0:02:59.1]} 2. b3 {[%clk 0:03:00.8]}
2... e6 {[%clk 0:02:58.4]} 3. Bb2 {[%clk 0:03:00.9]} 3... Be7 {[%clk 0:02:58.9]}
4. g3 {[%clk 0:03:00.6]} 4... b6 {[%clk 0:02:59.3]} 5. Bg2 {[%clk 0:03:00.7]}
5... Bb7 {[%clk 0:02:59.9]} 6. O-O {[%clk 0:03:01.1]} 6... O-O {[%clk
0:02:59.8]} 7. c4 {[%clk 0:02:58.1]} 7... c5 {[%clk 0:02:59.7]} 8. d4 {[%clk
0:02:55.5]} 8... cxd4 {[%clk 0:03:00.6]} 9. Qxd4 {[%clk 0:02:55.7]} 9... d6
{[%clk 0:03:00.6]} 10. Nc3 {[%clk 0:02:55.3]} 10... a6 {[%clk 0:02:57.3]} 11.
Rfd1 {[%clk 0:02:54.6]} 11... Nbd7 {[%clk 0:02:56.6]} 12. Ne1 {[%clk 0:02:51.1]}
12... Bxg2 {[%clk 0:02:54.2]} 13. Nxg2 {[%clk 0:02:52]} 13... Qc7 {[%clk
0:02:52.9]} 14. Rac1 {[%clk 0:02:36]} 14... Rfd8 {[%clk 0:02:44.9]} 15. Ne3
{[%clk 0:02:28.3]} 15... Rac8 {[%clk 0:02:38.8]} 16. Ne4 {[%clk 0:02:23.3]}
16... e5 {[%clk 0:02:26]} 17. Nxf6+ {[%clk 0:02:07.4]} 17... Nxf6 {[%clk
0:02:25.1]} 18. Qd3 {[%clk 0:02:07.4]} 18... Bf8 {[%clk 0:02:21.7]} 19. Nd5
{[%clk 0:02:04.1]} 19... Nxd5 {[%clk 0:02:18.6]} 20. Qxd5 {[%clk 0:02:05]} 20...
Qc5 {[%clk 0:02:13.7]} 21. h4 {[%clk 0:01:59]} 21... Qxd5 {[%clk 0:01:57.6]} 22.
Rxd5 {[%clk 0:01:58.5]} 22... Rc5 {[%clk 0:01:55.8]} 23. Ba3 {[%clk 0:01:47.4]}
23... Rc6 {[%clk 0:01:33]} 24. Rcd1 {[%clk 0:01:45.8]} 24... f6 {[%clk
0:01:31.5]} 25. f4 {[%clk 0:01:39.5]} 25... Kf7 {[%clk 0:01:30.5]} 26. e4 {[%clk
0:01:27.7]} 26... g6 {[%clk 0:01:29.7]} 27. Kf2 {[%clk 0:01:27.3]} 27... h5
{[%clk 0:01:23.5]} 28. Kf3 {[%clk 0:01:26.3]} 28... Ke6 {[%clk 0:01:23.8]} 29.
Bc1 {[%clk 0:01:19.1]} 29... Be7 {[%clk 0:01:22.2]} 30. a4 {[%clk 0:01:17]}
30... Rb8 {[%clk 0:01:21.3]} 31. Be3 {[%clk 0:01:16.1]} 31... Rb7 {[%clk
0:01:14.7]} 32. R1d3 {[%clk 0:01:14.9]} 32... a5 {[%clk 0:01:10.5]} 33. Bc1
{[%clk 0:01:05.5]} 33... Rb8 {[%clk 0:01:10.2]} 34. Ba3 {[%clk 0:01:03.6]} 34...
Rd8 {[%clk 0:01:08.2]} 35. Rd1 {[%clk 0:00:59.3]} 35... Rd7 {[%clk 0:01:08.1]}
36. Rg1 {[%clk 0:00:51.6]} 36... Rd8 {[%clk 0:01:06.7]} 37. g4 {[%clk 0:00:50]}
37... Rh8 {[%clk 0:00:57.2]} 38. f5+ {[%clk 0:00:48.2]} 38... gxf5 {[%clk
0:00:53.6]} 39. gxf5+ {[%clk 0:00:47.4]} 39... Kf7 {[%clk 0:00:53.7]} 40. Rd2
{[%clk 0:00:35.7]} 40... Rh7 {[%clk 0:00:30.9]} 41. Rdg2 {[%clk 0:00:34.2]}
41... Rc8 {[%clk 0:00:31.1]} 42. Bc1 {[%clk 0:00:29.3]} 42... Bf8 {[%clk
0:00:26.3]} 43. Be3 {[%clk 0:00:28.6]} 43... Rc6 {[%clk 0:00:24.7]} 44. Rg8
{[%clk 0:00:23.9]} 44... Ke8 {[%clk 0:00:20.4]} 45. R8g6 {[%clk 0:00:14.6]}
45... Kf7 {[%clk 0:00:20.4]} 46. R6g2 {[%clk 0:00:14]} 46... Ke8 {[%clk
0:00:19.9]} 47. Rd1 {[%clk 0:00:13.9]} 47... Kf7 {[%clk 0:00:17.7]} 48. Rg6
{[%clk 0:00:13.3]} 48... Be7 {[%clk 0:00:17.4]} 49. Rd5 {[%clk 0:00:11.4]} 49...
Rh8 {[%clk 0:00:17.3]} 50. Rb5 {[%clk 0:00:10.7]} 50... Bd8 {[%clk 0:00:15.6]}
51. Rd5 {[%clk 0:00:08.4]} 51... Be7 {[%clk 0:00:14.8]} 52. Rd2 {[%clk
0:00:08.2]} 52... Rh7 {[%clk 0:00:14.7]} 53. Rh6 {[%clk 0:00:07]} 53... Rxh6
{[%clk 0:00:14.2]} 54. Bxh6 {[%clk 0:00:07.9]} 54... Rc8 {[%clk 0:00:12.8]} 55.
Rg2 {[%clk 0:00:07.1]} 55... Rg8 {[%clk 0:00:12.2]} 56. Rxg8 {[%clk 0:00:02.8]}
56... Kxg8 {[%clk 0:00:12.4]} 57. Be3 {[%clk 0:00:03.7]} 57... Bd8 {[%clk
0:00:12.5]} 58. Ke2 {[%clk 0:00:04.3]} 58... Kf7 {[%clk 0:00:12.6]} 59. Kd3
{[%clk 0:00:05.2]} 59... Ke7 {[%clk 0:00:12.5]} 60. Kc3 {[%clk 0:00:06.1]} 60...
Kd7 {[%clk 0:00:12.9]} 61. b4 {[%clk 0:00:06.6]} 61... Kc6 {[%clk 0:00:11.9]}
62. Kb3 {[%clk 0:00:05.4]} 62... Bc7 {[%clk 0:00:11.6]} 63. Bf2 {[%clk
0:00:05.6]} 63... Bd8 {[%clk 0:00:11.4]} 64. Kc3 {[%clk 0:00:05.8]} 64... Be7
{[%clk 0:00:11.2]} 65. Kb3 {[%clk 0:00:05.6]} 65... axb4 {[%clk 0:00:09.6]} 66.
Be1 {[%clk 0:00:03.9]} 66... Bd8 {[%clk 0:00:07.7]} 67. Bxb4 {[%clk 0:00:03.8]}
67... Bc7 {[%clk 0:00:08.6]} 68. Bc3 {[%clk 0:00:03.8]} 68... Bd8 {[%clk
0:00:08.6]} 69. Kb4 {[%clk 0:00:03.6]} 69... Bc7 {[%clk 0:00:09]} 70. Kb3 {[%clk
0:00:03.6]} 70... Bd8 {[%clk 0:00:09.4]} 71. a5 {[%clk 0:00:03.9]} 71... bxa5
{[%clk 0:00:09.4]} 72. Bd2 {[%clk 0:00:03.1]} 72... Bb6 {[%clk 0:00:08.5]} 73.
Bh6 {[%clk 0:00:02.9]} 73... Bd8 {[%clk 0:00:08.3]} 74. Be3 {[%clk 0:00:01.4]}
74... Bb6 {[%clk 0:00:07.8]} 75. Bh6 {[%clk 0:00:02.3]} 75... Bd8 {[%clk
0:00:07.9]} 76. Be3 {[%clk 0:00:02.3]} 76... Bb6 {[%clk 0:00:08.1]} 77. Bh6
{[%clk 0:00:02.6]} 1/2-1/2

[Event "*** Titled Tuesday Blitz"]
[Site "Chess.com"]
[Date "2020.05.19"]
[Round "5"]
[White "Anna_ChessMate"]
[Black "MITerryble"]
[Result "0-1"]
[WhiteElo "2531"]
[BlackElo "2850"]
[TimeControl "180+1"]
[EndTime "12:58:53 PDT"]
[Termination "MITerryble won on time"]

1. d4 {[%clk 0:02:59.6]} 1... e6 {[%clk 0:03:00.3]} 2. c4 {[%clk 0:02:58.4]}
2... Bb4+ {[%clk 0:03:00.5]} 3. Bd2 {[%clk 0:02:56.3]} 3... Qe7 {[%clk
0:03:00.6]} 4. g3 {[%clk 0:02:52.8]} 4... Nf6 {[%clk 0:03:00.9]} 5. Bg2 {[%clk
0:02:53]} 5... O-O {[%clk 0:02:59.2]} 6. Nf3 {[%clk 0:02:52.7]} 6... Bxd2+
{[%clk 0:02:59.3]} 7. Nbxd2 {[%clk 0:02:50.7]} 7... d6 {[%clk 0:03:00.2]} 8. O-O
{[%clk 0:02:50.8]} 8... e5 {[%clk 0:03:00.8]} 9. e4 {[%clk 0:02:49.7]} 9... a5
{[%clk 0:02:58]} 10. Re1 {[%clk 0:02:48.9]} 10... c5 {[%clk 0:02:45.6]} 11. dxe5
{[%clk 0:02:35.2]} 11... dxe5 {[%clk 0:02:45.3]} 12. Nb1 {[%clk 0:02:34.2]}
12... Rd8 {[%clk 0:02:41.5]} 13. Qc1 {[%clk 0:02:21.2]} 13... Bg4 {[%clk
0:02:39.2]} 14. Nc3 {[%clk 0:02:17.1]} 14... Bxf3 {[%clk 0:02:39]} 15. Bxf3
{[%clk 0:02:18]} 15... Nc6 {[%clk 0:02:39.5]} 16. Nd5 {[%clk 0:02:17.5]} 16...
Qd6 {[%clk 0:02:39]} 17. Bg2 {[%clk 0:02:10.2]} 17... Nd4 {[%clk 0:02:36.8]} 18.
Qc3 {[%clk 0:01:55.1]} 18... Nxd5 {[%clk 0:02:32.4]} 19. exd5 {[%clk 0:01:54.4]}
19... f5 {[%clk 0:02:25.8]} 20. Rad1 {[%clk 0:01:52.5]} 20... Re8 {[%clk
0:02:25.2]} 21. b3 {[%clk 0:01:43.7]} 21... b6 {[%clk 0:02:25]} 22. a4 {[%clk
0:01:41.1]} 22... Re7 {[%clk 0:02:25]} 23. Kh1 {[%clk 0:01:20.3]} 23... Rae8
{[%clk 0:02:24]} 24. Re3 {[%clk 0:01:10.6]} 24... g5 {[%clk 0:02:09.1]} 25. Ree1
{[%clk 0:01:08.2]} 25... g4 {[%clk 0:02:05.8]} 26. f3 {[%clk 0:01:07.8]} 26...
h5 {[%clk 0:02:03.3]} 27. fxg4 {[%clk 0:01:07.1]} 27... hxg4 {[%clk 0:02:03.4]}
28. Rf1 {[%clk 0:01:02.2]} 28... Kg7 {[%clk 0:01:50.7]} 29. Qe3 {[%clk
0:00:51.5]} 29... Kg6 {[%clk 0:01:29.1]} 30. Kg1 {[%clk 0:00:43.6]} 30... Rh8
{[%clk 0:01:27.1]} 31. Rf2 {[%clk 0:00:39.6]} 31... Reh7 {[%clk 0:01:23.8]} 32.
Be4 {[%clk 0:00:23.2]} 32... Rh5 {[%clk 0:00:48.4]} 33. Rdf1 {[%clk 0:00:21.3]}
33... Rf8 {[%clk 0:00:38.9]} 34. h4 {[%clk 0:00:18.1]} 34... Kg7 {[%clk
0:00:28.8]} 35. Bg2 {[%clk 0:00:16]} 35... Rf7 {[%clk 0:00:21]} 36. Be4 {[%clk
0:00:15.6]} 36... Rf6 {[%clk 0:00:19.7]} 37. Kg2 {[%clk 0:00:14.7]} 37... Rf7
{[%clk 0:00:12.3]} 38. Bb1 {[%clk 0:00:14.3]} 38... Rf6 {[%clk 0:00:11.5]} 39.
Qd2 {[%clk 0:00:13.6]} 39... Kf7 {[%clk 0:00:08.7]} 40. Qd1 {[%clk 0:00:12.5]}
40... Ke7 {[%clk 0:00:08]} 41. Bd3 {[%clk 0:00:06.1]} 41... Kd8 {[%clk
0:00:07.1]} 42. Bc2 {[%clk 0:00:05.4]} 42... Kc7 {[%clk 0:00:07.1]} 43. Qd2
{[%clk 0:00:05.3]} 43... Qe7 {[%clk 0:00:04]} 44. Bd3 {[%clk 0:00:05]} 44... Kd6
{[%clk 0:00:03.9]} 45. Qd1 {[%clk 0:00:04.8]} 45... Qe8 {[%clk 0:00:03.6]} 46.
Qd2 {[%clk 0:00:03]} 46... Qe7 {[%clk 0:00:03.5]} 47. Qe3 {[%clk 0:00:03.3]}
47... Qg7 {[%clk 0:00:03.4]} 48. Bc2 {[%clk 0:00:03.4]} 48... Rf7 {[%clk
0:00:02.7]} 49. Bd1 {[%clk 0:00:03.4]} 49... Rh7 {[%clk 0:00:01.7]} 50. Qd3
{[%clk 0:00:02.5]} 50... Rh5 {[%clk 0:00:01.9]} 51. Qd2 {[%clk 0:00:02.6]} 51...
Rf6 {[%clk 0:00:02.2]} 52. Qd3 {[%clk 0:00:03]} 52... Kd7 {[%clk 0:00:02.6]} 53.
Qd2 {[%clk 0:00:03.3]} 53... Kc7 {[%clk 0:00:03]} 54. Qe3 {[%clk 0:00:03.7]}
54... Kd6 {[%clk 0:00:03.3]} 55. Qd2 {[%clk 0:00:03.6]} 55... Rf8 {[%clk
0:00:03.6]} 56. Qe3 {[%clk 0:00:03.9]} 56... Rhh8 {[%clk 0:00:03]} 57. Re1
{[%clk 0:00:04]} 57... Re8 {[%clk 0:00:02.9]} 58. Ref1 {[%clk 0:00:04.4]} 58...
Qh6 {[%clk 0:00:03]} 59. Qd3 {[%clk 0:00:03.3]} 59... e4 {[%clk 0:00:03.1]} 60.
Qc3 {[%clk 0:00:01.9]} 60... e3 {[%clk 0:00:03.5]} 61. Rf4 {[%clk 0:00:02.2]}
61... e2 {[%clk 0:00:03.5]} 62. Bxe2 {[%clk 0:00:01]} 62... Rxe2+ {[%clk
0:00:04.4]} 63. R1f2 {[%clk 0:00:01.2]} 63... Rhe8 {[%clk 0:00:04.6]} 0-1

[Event "*** Titled Tuesday Blitz"]
[Site "Chess.com"]
[Date "2020.05.19"]
[Round "5"]
[White "ketster"]
[Black "NefeLV"]
[Result "1-0"]
[WhiteElo "2362"]
[BlackElo "1828"]
[TimeControl "180+1"]
[EndTime "12:58:54 PDT"]
[Termination "ketster won by resignation"]

1. d4 {[%clk 0:03:00.9]} 1... g6 {[%clk 0:02:58.8]} 2. c4 {[%clk 0:03:00]} 2...
Bg7 {[%clk 0:02:59.7]} 3. e4 {[%clk 0:03:00]} 3... e6 {[%clk 0:02:59.8]} 4. Nc3
{[%clk 0:02:59.7]} 4... Ne7 {[%clk 0:02:55.7]} 5. Nf3 {[%clk 0:02:56.6]} 5... d5
{[%clk 0:02:53.5]} 6. cxd5 {[%clk 0:02:47.8]} 6... exd5 {[%clk 0:02:52.9]} 7. e5
{[%clk 0:02:45.4]} 7... O-O {[%clk 0:02:51.7]} 8. Be2 {[%clk 0:02:40.8]} 8... c5
{[%clk 0:02:51.5]} 9. Be3 {[%clk 0:02:38.7]} 9... c4 {[%clk 0:02:49.7]} 10. O-O
{[%clk 0:02:37]} 10... a6 {[%clk 0:02:49.1]} 11. a4 {[%clk 0:02:35.9]} 11... Bd7
{[%clk 0:02:47.8]} 12. Bg5 {[%clk 0:02:34.5]} 12... Nbc6 {[%clk 0:02:45.7]} 13.
Nxd5 {[%clk 0:02:32.6]} 13... h6 {[%clk 0:02:44.7]} 14. Nf6+ {[%clk 0:02:26.9]}
14... Kh8 {[%clk 0:02:41.1]} 15. Bh4 {[%clk 0:02:24.6]} 15... g5 {[%clk
0:02:35.9]} 16. Bg3 {[%clk 0:02:11.1]} 16... Bf5 {[%clk 0:02:27.2]} 17. d5
{[%clk 0:02:02.7]} 17... Na5 {[%clk 0:02:24.7]} 18. d6 {[%clk 0:01:55.4]} 18...
Nec6 {[%clk 0:02:20.9]} 19. Nd5 {[%clk 0:01:46.9]} 19... Nb3 {[%clk 0:02:06.8]}
20. Ra3 {[%clk 0:01:42.6]} 20... Nca5 {[%clk 0:02:06.2]} 21. Nd4 {[%clk
0:01:35.5]} 21... Nxd4 {[%clk 0:02:01.5]} 22. Qxd4 {[%clk 0:01:35]} 22... Qxd6
{[%clk 0:01:56.3]} 23. Bxc4 {[%clk 0:01:25.9]} 23... Rac8 {[%clk 0:01:40.9]} 24.
Ba2 {[%clk 0:01:21.3]} 24... Nc6 {[%clk 0:01:35.7]} 25. exd6 {[%clk 0:01:16.7]}
25... Bxd4 {[%clk 0:01:34.4]} 26. Rd1 {[%clk 0:01:11.6]} 26... Bxb2 {[%clk
0:01:33]} 27. Rb3 {[%clk 0:01:08.1]} 27... Be5 {[%clk 0:01:24.2]} 28. Rxb7
{[%clk 0:01:02.6]} 28... Bxg3 {[%clk 0:01:23.4]} 29. hxg3 {[%clk 0:01:01.7]}
29... Ne5 {[%clk 0:01:16.3]} 30. Ne7 {[%clk 0:00:58.3]} 30... Bg4 {[%clk
0:01:11.4]} 31. f3 {[%clk 0:00:49.2]} 31... Bh5 {[%clk 0:01:08.5]} 32. Nxc8
{[%clk 0:00:47.8]} 32... Rxc8 {[%clk 0:01:06.6]} 33. g4 {[%clk 0:00:46.2]} 33...
Bg6 {[%clk 0:01:05.7]} 34. d7 {[%clk 0:00:43.4]} 34... Rd8 {[%clk 0:01:04.9]}
35. Rc7 {[%clk 0:00:43.3]} 35... Kg7 {[%clk 0:00:59.1]} 36. Bc4 {[%clk
0:00:39.7]} 36... Bc2 {[%clk 0:00:57.2]} 37. Rd2 {[%clk 0:00:37.9]} 37... Bxa4
{[%clk 0:00:55.4]} 38. Bxa6 {[%clk 0:00:37.3]} 38... Rxd7 {[%clk 0:00:50.9]} 39.
Rdxd7 {[%clk 0:00:33.6]} 39... Bxd7 {[%clk 0:00:48.3]} 40. Kf2 {[%clk
0:00:32.9]} 40... Be6 {[%clk 0:00:46.9]} 41. g3 {[%clk 0:00:31.2]} 41... Kf6
{[%clk 0:00:44.3]} 42. Be2 {[%clk 0:00:30]} 42... Nd7 {[%clk 0:00:39]} 43. f4
{[%clk 0:00:28.5]} 43... gxf4 {[%clk 0:00:36.5]} 44. gxf4 {[%clk 0:00:28.3]}
44... Nf8 {[%clk 0:00:34.4]} 45. f5 {[%clk 0:00:27]} 45... Bd5 {[%clk
0:00:31.9]} 46. Bf3 {[%clk 0:00:27.1]} 46... Bb3 {[%clk 0:00:26.5]} 47. Rc6+
{[%clk 0:00:26.1]} 47... Kg5 {[%clk 0:00:25.9]} 48. Kg3 {[%clk 0:00:25.7]} 48...
Nh7 {[%clk 0:00:22]} 49. Rc7 {[%clk 0:00:23.7]} 49... Nf6 {[%clk 0:00:20.3]} 50.
Rc3 {[%clk 0:00:18.3]} 50... Ba2 {[%clk 0:00:19.6]} 51. Rc2 {[%clk 0:00:17.8]}
51... Bb3 {[%clk 0:00:19.5]} 52. Rh2 {[%clk 0:00:17.7]} 52... Bc4 {[%clk
0:00:12.9]} 53. Rc2 {[%clk 0:00:17.7]} 53... Bb3 {[%clk 0:00:12.8]} 54. Rc8
{[%clk 0:00:18]} 54... Ba2 {[%clk 0:00:12.7]} 55. Rh8 {[%clk 0:00:18]} 55... Bb3
{[%clk 0:00:11.3]} 56. Be2 {[%clk 0:00:17.7]} 56... Ba2 {[%clk 0:00:10.9]} 57.
Bb5 {[%clk 0:00:17]} 57... Ne4+ {[%clk 0:00:10.1]} 58. Kf3 {[%clk 0:00:16.4]}
58... Nf6 {[%clk 0:00:09.7]} 59. Kg3 {[%clk 0:00:15.4]} 59... Bd5 {[%clk
0:00:09]} 60. Be2 {[%clk 0:00:14.1]} 60... Ne4+ {[%clk 0:00:08.7]} 61. Kh2
{[%clk 0:00:12.7]} 61... Nc3 {[%clk 0:00:08.2]} 62. Rg8+ {[%clk 0:00:11.7]}
62... Kf6 {[%clk 0:00:04.9]} 63. Bf1 {[%clk 0:00:11.9]} 63... Ne4 {[%clk
0:00:04.8]} 64. Bg2 {[%clk 0:00:11.8]} 64... Nc3 {[%clk 0:00:03.6]} 65. Bxd5
{[%clk 0:00:11.6]} 65... Nxd5 {[%clk 0:00:04.5]} 66. Kg3 {[%clk 0:00:11.8]}
66... Ne3 {[%clk 0:00:04.9]} 67. Rh8 {[%clk 0:00:11]} 67... Nd5 {[%clk 0:00:04]}
68. Rxh6+ {[%clk 0:00:10.5]} 68... Kg7 {[%clk 0:00:03.6]} 69. Ra6 {[%clk
0:00:10.8]} 69... Ne7 {[%clk 0:00:03.9]} 70. Kf4 {[%clk 0:00:10.3]} 70... Ng8
{[%clk 0:00:04.8]} 71. g5 {[%clk 0:00:10.1]} 71... Nf6 {[%clk 0:00:05.5]} 72.
gxf6+ {[%clk 0:00:09.8]} 1-0

[Event "*** Titled Tuesday Blitz"]
[Site "Chess.com"]
[Date "2020.05.19"]
[Round "5"]
[White "umngqusho"]
[Black "NotFischer"]
[Result "1-0"]
[WhiteElo "2489"]
[BlackElo "2099"]
[TimeControl "180+1"]
[EndTime "12:58:56 PDT"]
[Termination "umngqusho won on time"]

1. e4 {[%clk 0:03:00.9]} 1... g6 {[%clk 0:03:00.9]} 2. d4 {[%clk 0:03:00.4]}
2... Bg7 {[%clk 0:03:01.3]} 3. Nf3 {[%clk 0:03:00.3]} 3... c6 {[%clk 0:03:01]}
4. Nbd2 {[%clk 0:02:57.4]} 4... d5 {[%clk 0:02:59.3]} 5. h3 {[%clk 0:02:56.6]}
5... dxe4 {[%clk 0:02:57.2]} 6. Nxe4 {[%clk 0:02:55.9]} 6... Nd7 {[%clk
0:02:57.6]} 7. Bd3 {[%clk 0:02:53.6]} 7... Ngf6 {[%clk 0:02:57.1]} 8. Nxf6+
{[%clk 0:02:51.5]} 8... Nxf6 {[%clk 0:02:56.3]} 9. O-O {[%clk 0:02:51.2]} 9...
O-O {[%clk 0:02:56.3]} 10. Re1 {[%clk 0:02:50.2]} 10... Bf5 {[%clk 0:02:54.1]}
11. Bxf5 {[%clk 0:02:49]} 11... gxf5 {[%clk 0:02:55]} 12. c3 {[%clk 0:02:47.4]}
12... e6 {[%clk 0:02:54.6]} 13. Bf4 {[%clk 0:02:45.2]} 13... Qd5 {[%clk
0:02:52.5]} 14. Be5 {[%clk 0:02:44.5]} 14... Rad8 {[%clk 0:02:38.2]} 15. Qb3
{[%clk 0:02:40]} 15... Qxb3 {[%clk 0:02:05]} 16. axb3 {[%clk 0:02:40.9]} 16...
a6 {[%clk 0:02:05.1]} 17. Nd2 {[%clk 0:02:32.8]} 17... c5 {[%clk 0:02:00.1]} 18.
Nc4 {[%clk 0:02:27.3]} 18... Ne4 {[%clk 0:01:46.2]} 19. f3 {[%clk 0:02:16.2]}
19... Bxe5 {[%clk 0:01:37.1]} 20. Nxe5 {[%clk 0:02:09.6]} 20... Nd2 {[%clk
0:01:34.6]} 21. Ra3 {[%clk 0:01:51.7]} 21... cxd4 {[%clk 0:01:32]} 22. c4 {[%clk
0:01:51.8]} 22... f6 {[%clk 0:01:00.8]} 23. Nd3 {[%clk 0:01:47.2]} 23... e5
{[%clk 0:01:00.7]} 24. Rd1 {[%clk 0:01:35.8]} 24... e4 {[%clk 0:01:00.5]} 25.
Rxd2 {[%clk 0:01:33.2]} 25... exd3 {[%clk 0:01:00.1]} 26. b4 {[%clk 0:01:31.5]}
26... Rfe8 {[%clk 0:00:54.1]} 27. Raxd3 {[%clk 0:01:30.7]} 27... Re1+ {[%clk
0:00:53.2]} 28. Kf2 {[%clk 0:01:30.4]} 28... Rb1 {[%clk 0:00:47.2]} 29. Kg3
{[%clk 0:01:23.1]} 29... Kf7 {[%clk 0:00:45.8]} 30. Kf4 {[%clk 0:01:21]} 30...
Kg6 {[%clk 0:00:45.7]} 31. h4 {[%clk 0:01:05.9]} 31... h5 {[%clk 0:00:44.9]} 32.
c5 {[%clk 0:01:01.5]} 32... Rd5 {[%clk 0:00:37.9]} 33. Kg3 {[%clk 0:00:55.2]}
33... a5 {[%clk 0:00:36.8]} 34. Rxd4 {[%clk 0:00:51.5]} 34... Rxd4 {[%clk
0:00:36.7]} 35. Rxd4 {[%clk 0:00:52.4]} 35... Rxb2 {[%clk 0:00:34.6]} 36. bxa5
{[%clk 0:00:52.4]} 36... Rb5 {[%clk 0:00:34.4]} 37. Rd7 {[%clk 0:00:52.4]} 37...
Rxc5 {[%clk 0:00:32.9]} 38. Rxb7 {[%clk 0:00:52]} 38... Rxa5 {[%clk 0:00:32.9]}
39. Rb8 {[%clk 0:00:50.2]} 39... Ra3 {[%clk 0:00:32.1]} 40. Rg8+ {[%clk
0:00:49.7]} 40... Kf7 {[%clk 0:00:31.9]} 41. Rh8 {[%clk 0:00:48.9]} 41... Kg6
{[%clk 0:00:31.2]} 42. Rg8+ {[%clk 0:00:48.8]} 42... Kf7 {[%clk 0:00:31.2]} 43.
Rb8 {[%clk 0:00:47.7]} 43... Ra4 {[%clk 0:00:30.4]} 44. Kh3 {[%clk 0:00:42.6]}
44... f4 {[%clk 0:00:29.9]} 45. Rb5 {[%clk 0:00:41.1]} 45... Kg6 {[%clk
0:00:30]} 46. Kh2 {[%clk 0:00:40.9]} 46... Rd4 {[%clk 0:00:29.2]} 47. Kg1 {[%clk
0:00:40.2]} 47... Ra4 {[%clk 0:00:28.4]} 48. Rd5 {[%clk 0:00:38.2]} 48... Rb4
{[%clk 0:00:28.3]} 49. Kf2 {[%clk 0:00:38.2]} 49... Ra4 {[%clk 0:00:27.6]} 50.
Ke2 {[%clk 0:00:37]} 50... Ra2+ {[%clk 0:00:27.3]} 51. Rd2 {[%clk 0:00:37]}
51... Ra3 {[%clk 0:00:25.5]} 52. Rb2 {[%clk 0:00:34]} 52... Rc3 {[%clk
0:00:22.4]} 53. Kf2 {[%clk 0:00:33.1]} 53... Ra3 {[%clk 0:00:21.3]} 54. Rb4
{[%clk 0:00:32.9]} 54... Rc3 {[%clk 0:00:21]} 55. Rxf4 {[%clk 0:00:30.8]} 55...
Rc2+ {[%clk 0:00:16.7]} 56. Kg3 {[%clk 0:00:30.9]} 56... Ra2 {[%clk 0:00:13.2]}
57. Rc4 {[%clk 0:00:30.5]} 57... Ra3 {[%clk 0:00:12.9]} 58. Kf4 {[%clk
0:00:29.2]} 58... Ra2 {[%clk 0:00:11.5]} 59. g4 {[%clk 0:00:29.4]} 59... hxg4
{[%clk 0:00:11]} 60. fxg4 {[%clk 0:00:30.3]} 60... Rf2+ {[%clk 0:00:10.6]} 61.
Kg3 {[%clk 0:00:30]} 61... Rf1 {[%clk 0:00:11]} 62. Rc6 {[%clk 0:00:26]} 62...
Rg1+ {[%clk 0:00:10.1]} 63. Kf3 {[%clk 0:00:25.2]} 63... Rh1 {[%clk 0:00:08.1]}
64. Kg3 {[%clk 0:00:21.6]} 64... Rg1+ {[%clk 0:00:08.1]} 65. Kf4 {[%clk
0:00:21.7]} 65... Rh1 {[%clk 0:00:07.9]} 66. h5+ {[%clk 0:00:21.8]} 66... Kg7
{[%clk 0:00:06.6]} 67. Kf5 {[%clk 0:00:19.6]} 67... Rf1+ {[%clk 0:00:05.7]} 68.
Ke6 {[%clk 0:00:19.9]} 68... Kh6 {[%clk 0:00:05.4]} 69. Rc4 {[%clk 0:00:18.1]}
69... Kg5 {[%clk 0:00:05.2]} 70. Kf7 {[%clk 0:00:18.3]} 70... Rg1 {[%clk
0:00:04.7]} 71. Kg7 {[%clk 0:00:17.9]} 71... f5 {[%clk 0:00:03.2]} 72. h6 {[%clk
0:00:17.1]} 72... fxg4 {[%clk 0:00:02.7]} 73. h7 {[%clk 0:00:17.2]} 73... Rh1
{[%clk 0:00:03.2]} 74. Rc5+ {[%clk 0:00:16.4]} 74... Kf4 {[%clk 0:00:02.1]} 75.
Rc6 {[%clk 0:00:16.4]} 75... g3 {[%clk 0:00:01.1]} 76. Rf6+ {[%clk 0:00:16.4]}
1-0